bitfinex/quotes_ETHUSD_20240710
["timestamp","ask_amount","ask_price","bid_price","bid_amount"]
[1720646669080,2.3015,3102.3,3101.2,0.87258064]
[1720646669281,2.56543086,3102.3,3101.3,0.55]
[1720646670132,2.56543086,3102.3,3101.3,0.87258064]
[1720646670625,3.0,3102.2,3101.3,0.87258064]
[1720646671396,0.03112944,3102.1,3101.3,0.87258064]
[1720646673108,0.03112944,3102.1,3101.4,2.2939]
[1720646673321,0.03112944,3102.1,3101.5,0.55]
[1720646673821,0.33780858,3102.5,3101.5,0.55]
[1720646674024,0.03107151,3102.0,3101.5,0.55]
[1720646674323,0.03101358,3101.9,3101.5,0.55]
[1720646674828,0.06436567,3102.4,3101.5,0.55]
[1720646675324,0.03124528,3102.3,3101.5,0.55]
[1720646677697,0.03124528,3102.3,3101.6,0.06447374]
[1720646678098,0.33780858,3102.5,3101.6,0.06447374]
[1720646678282,0.33780858,3102.5,3101.7,0.55]
[1720646678283,0.03124995,3102.2,3101.7,0.55]
[1720646678488,0.03124995,3102.2,3101.5,3.55]
[1720646678489,0.33780858,3102.5,3101.5,3.55]
[1720646678745,12.47,3103.2,3101.6,0.58439]
[1720646678746,0.03119203,3102.1,3101.6,0.58439]
[1720646678929,3.0,3103.1,3101.7,0.55]
[1720646679115,0.03113411,3102.0,3101.7,0.55]
[1720646679317,3.0,3103.1,3101.7,0.55]
[1720646679712,0.03135646,3102.6,3101.7,0.55]
[1720646686638,0.03135646,3102.6,3101.8,2.4946]
[1720646686813,0.03135646,3102.6,3101.9,0.30446]
[1720646687412,2.29605646,3102.6,3101.7,3.0446]
[1720646687830,2.29605646,3102.6,3101.6,0.58439]
[1720646687831,0.06436567,3102.5,3101.6,0.58439]
[1720646688007,0.03051456,3102.4,3101.3,3.32258064]
[1720646688210,0.03051456,3102.4,3101.4,0.55]
[1720646688407,2.32906567,3102.5,3101.4,0.55]
[1720646688712,0.09488023,3102.4,3101.4,0.55]
[1720646688919,0.09488023,3102.4,3101.5,0.38725806]
[1720646689144,0.03051456,3102.4,3101.5,0.38725806]
[1720646689346,0.09488023,3102.4,3101.5,0.38725806]
[1720646691019,0.09488023,3102.4,3101.6,2.4946]
[1720646691223,0.06436567,3102.4,3101.6,2.4946]
[1720646691451,0.06436567,3102.4,3101.7,0.28818581]
[1720646691777,0.36841051,3102.3,3101.7,0.28818581]
[1720646693667,0.36841051,3102.3,3101.8,0.55]
[1720646696832,0.3378059,3102.3,3101.8,0.55]
[1720646697037,0.03056313,3102.2,3101.8,0.55]
[1720646697269,0.3378059,3102.3,3101.9,0.38381858]
[1720646697421,0.03052001,3102.1,3102.0,0.55]
[1720646697733,0.3378059,3102.3,3102.0,0.55]
[1720646697929,0.0305237,3102.1,3102.0,0.55]
[1720646698130,0.3378059,3102.3,3102.0,0.55]
[1720646698336,0.0305237,3102.1,3102.0,0.55]
[1720646698537,0.3378059,3102.3,3102.0,0.55]
[1720646699036,0.03058716,3102.2,3102.0,0.55]
[1720646699249,0.3378059,3102.3,3102.0,0.55]
[1720646699450,0.03058716,3102.2,3102.0,0.55]
[1720646699667,0.3378059,3102.3,3102.0,0.55]
[1720646699868,0.03058716,3102.2,3102.0,0.55]
[1720646700022,0.3378059,3102.3,3102.0,0.55]
[1720646700219,0.03058716,3102.2,3102.0,0.55]
[1720646700524,0.3378059,3102.3,3102.0,0.55]
[1720646700744,0.03062125,3102.1,3102.0,0.55]
[1720646700949,0.3378059,3102.3,3102.0,0.55]
[1720646701149,0.03068382,3102.1,3102.0,0.55]
[1720646701349,0.3378059,3102.3,3102.0,0.55]
[1720646701939,0.03050444,3102.2,3102.0,0.55]
[1720646702441,0.3378059,3102.3,3102.0,0.55]
[1720646702442,0.03044651,3102.1,3102.0,0.55]
[1720646702643,0.3378059,3102.3,3102.0,0.55]
[1720646702844,0.03051551,3102.2,3102.0,0.55]
[1720646703175,0.3378059,3102.3,3102.0,0.55]
[1720646703667,0.02934017,3102.2,3102.0,0.55]
[1720646703826,0.3378059,3102.3,3102.0,0.55]
[1720646704172,0.02934017,3102.2,3102.0,0.55]
[1720646704545,0.3378059,3102.3,3102.0,0.55]
[1720646704742,0.02928224,3102.1,3102.0,0.55]
[1720646704956,0.3378059,3102.3,3102.0,0.55]
[1720646705159,0.02928224,3102.1,3102.0,0.55]
[1720646705360,0.3378059,3102.3,3102.0,0.55]
[1720646705536,0.02928224,3102.1,3102.0,0.55]
[1720646705733,0.3378059,3102.3,3102.0,0.55]
[1720646705947,0.02928224,3102.1,3102.0,0.55]
[1720646706147,0.3378059,3102.3,3102.0,0.55]
[1720646706349,0.02928224,3102.1,3102.0,0.55]
[1720646706660,0.3378059,3102.3,3102.0,0.55]
[1720646707030,0.02934017,3102.2,3102.0,0.55]
[1720646707253,0.3378059,3102.3,3102.0,0.55]
[1720646707455,0.02934017,3102.2,3102.0,0.55]
[1720646707650,0.3378059,3102.3,3102.0,0.55]
[1720646708043,0.02934017,3102.2,3102.0,0.55]
[1720646708331,0.3378059,3102.3,3102.0,0.55]
[1720646708543,0.02932101,3102.1,3102.0,0.55]
[1720646708743,0.3378059,3102.3,3102.0,0.55]
[1720646708962,0.02932101,3102.1,3102.0,0.55]
[1720646709575,0.3378059,3102.3,3102.0,0.55]
[1720646709773,0.02932101,3102.1,3102.0,0.55]
[1720646709955,0.3378059,3102.3,3102.0,0.55]
[1720646710134,0.02932101,3102.1,3102.0,0.55]
[1720646710464,0.02950872,3102.1,3102.0,0.55]
[1720646710650,0.3378059,3102.3,3102.0,0.55]
[1720646710857,0.0295204,3102.2,3102.0,0.55]
[1720646711055,0.3378059,3102.3,3102.0,0.55]
[1720646711261,0.0295204,3102.2,3102.0,0.55]
[1720646711571,0.3378059,3102.3,3102.0,0.55]
[1720646711749,0.0292898,3102.1,3102.0,0.55]
[1720646711943,0.3378059,3102.3,3102.0,0.55]
[1720646712149,0.03138193,3102.1,3102.0,0.55]
[1720646712349,0.3378059,3102.3,3102.0,0.55]
[1720646712845,0.03144399,3102.2,3102.0,0.55]
[1720646713050,0.3378059,3102.3,3102.0,0.55]
[1720646713275,0.03144399,3102.2,3102.0,0.55]
[1720646713469,0.3378059,3102.3,3102.0,0.55]
[1720646713818,0.03144399,3102.2,3102.0,0.55]
[1720646714167,0.3378059,3102.3,3102.0,0.55]
[1720646714776,0.03144399,3102.2,3102.0,0.55]
[1720646714931,0.3378059,3102.3,3102.1,2.4978]
[1720646715131,0.3378059,3102.3,3102.2,0.85478]
[1720646718153,2.03071265,3103.0,3102.2,3.85478]
[1720646718553,0.03193367,3102.9,3102.2,3.85478]
[1720646719908,0.03193367,3102.9,3102.3,2.3209]
[1720646720211,0.03193367,3102.9,3102.4,0.55]
[1720646720375,0.03193367,3102.9,3102.5,0.58709]
[1720646720582,0.03193367,3102.9,3102.6,0.55]
[1720646720789,2.2788,3103.2,3102.6,0.55]
[1720646721310,0.1122086,3103.5,3102.7,2.3209]
[1720646721518,0.1122086,3103.5,3102.8,0.55]
[1720646721678,0.03224378,3103.4,3102.8,0.83709]
[1720646721879,2.2788,3103.3,3102.8,0.83709]
[1720646722081,0.03211975,3103.2,3102.5,0.58709]
[1720646722390,2.2788,3103.1,3102.2,0.30478]
[1720646722593,2.2788,3103.1,3101.7,4.01265403]
[1720646723471,2.2788,3103.1,3102.0,0.55]
[1720646724618,2.2788,3103.1,3102.0,3.0077]
[1720646724788,2.2788,3103.1,3102.1,3.0]
[1720646724982,2.2788,3103.1,3102.2,0.55]
[1720646725319,2.2788,3103.1,3102.3,0.355]
[1720646725504,0.03207875,3103.0,3102.4,0.55]
[1720646738259,0.03207875,3103.0,3102.9,0.84]
[1720646749418,2.2985,3103.4,3102.9,0.84]
[1720646749626,2.2985,3103.4,3102.4,0.55]
[1720646749627,0.03215786,3103.0,3102.4,0.55]
[1720646749837,2.2985,3103.4,3102.9,0.84]
[1720646750032,2.2985,3103.4,3103.3,0.84]
[1720646751839,2.6362231,3103.4,3103.3,0.84]
[1720646752751,2.66862904,3103.4,3103.3,0.84]
[1720646756468,4.69861211,3103.4,3103.3,0.84]
[1720646756853,2.40011211,3103.4,3102.4,7.95]
[1720646757168,2.09507041,3103.3,3103.2,0.84]
[1720646757366,4.51100599,3103.3,3103.2,0.84]
[1720646758277,2.48030125,3103.3,3103.2,0.84]
[1720646758483,2.3651,3103.2,3102.9,0.84]
[1720646758767,2.03051469,3103.0,3102.4,8.79]
[1720646759074,2.03051469,3103.0,3102.6,0.84]
[1720646759273,0.03215315,3102.9,3102.6,0.84]
[1720646759570,0.03209112,3102.8,3102.6,0.84]
[1720646759773,4.39561469,3103.1,3102.6,0.84]
[1720646760089,4.39561469,3103.1,3102.8,0.84]
[1720646760684,4.39610124,3103.1,3102.8,0.84]
[1720646762277,2.03100124,3103.0,3102.8,0.84]
[1720646763250,2.0313021,3103.0,3102.8,0.84]
[1720646763456,0.03260544,3102.9,3102.8,0.84]
[1720646767286,0.37033974,3102.9,3102.8,0.84]
[1720646768876,0.37033974,3102.9,3102.6,0.84]
[1720646771784,0.37033974,3102.9,3102.7,0.84]
[1720646784424,2.86943974,3102.9,3102.4,0.55]
[1720646784585,2.4991,3102.8,3102.3,0.84]
[1720646784783,2.53056511,3102.8,3102.3,0.84]
[1720646789324,2.59493078,3102.8,3102.3,0.84]
[1720646790719,4.62237248,3102.8,3102.3,0.84]
[1720646791224,4.62118089,3102.8,3102.3,0.84]
[1720646792134,2.4991,3102.7,3102.3,0.84]
[1720646792333,2.56346567,3102.7,3101.7,2.497]
[1720646792497,0.03131326,3102.6,3102.3,0.84]
[1720646793137,0.33775208,3102.5,3102.3,0.84]
[1720646793641,0.03128968,3102.4,3102.3,0.84]
[1720646795516,2.35108968,3102.4,3102.1,0.84]
[1720646796048,2.35108968,3102.4,3102.0,0.84]
[1720646807658,2.35108968,3102.4,3100.8,3.22497]
[1720646807659,2.4689,3102.1,3100.4,7.4]
[1720646807901,2.4689,3101.4,3100.6,0.84]
[1720646808101,0.06436567,3101.3,3100.6,0.84]
[1720646808453,0.40222816,3101.3,3100.6,0.84]
[1720646808659,0.06436567,3101.2,3100.6,0.84]
[1720646810395,2.4689,3101.1,3100.0,2.2814]
[1720646810565,2.4689,3101.1,3100.4,0.84]
[1720646810566,0.06436567,3101.0,3100.4,0.84]
[1720646811569,0.06436567,3101.0,3099.7,2.2814]
[1720646812079,0.06436567,3101.0,3100.4,0.84]
[1720646814559,2.3073,3100.9,3099.8,0.55]
[1720646814777,2.3073,3100.7,3100.0,0.84]
[1720646814976,0.06436567,3100.6,3100.0,0.84]
[1720646815408,2.3073,3100.5,3098.8,2.2826]
[1720646815571,0.06436567,3100.4,3099.8,0.84]
[1720646815778,0.30153224,3100.4,3099.8,0.84]
[1720646816004,2.3073,3100.3,3099.8,0.84]
[1720646816206,0.06436567,3100.2,3099.8,0.84]
[1720646817202,2.3073,3100.1,3099.4,0.84]
[1720646817507,0.06436567,3100.0,3099.4,0.84]
[1720646818404,2.3886,3099.9,3099.4,0.84]
[1720646818614,0.06436567,3099.8,3099.4,0.84]
[1720646821094,0.30966224,3099.8,3098.6,3.0]
[1720646821298,2.3886,3099.9,3099.2,0.84]
[1720646821299,0.06436567,3099.7,3099.2,0.84]
[1720646822292,2.3886,3099.6,3099.0,0.84]
[1720646822628,0.06436567,3099.5,3099.0,0.84]
[1720646824143,0.06436567,3099.5,3098.6,3.0]
[1720646824144,0.06436567,3099.5,3098.1,2.4973]
[1720646824281,0.06436567,3099.5,3098.8,0.84]
[1720646826532,2.3886,3099.4,3098.6,0.84]
[1720646826831,0.06436567,3099.3,3098.6,0.84]
[1720646827418,2.4404,3099.2,3098.6,0.84]
[1720646827610,0.06436567,3099.1,3098.6,0.84]
[1720646828390,2.4404,3099.0,3098.6,0.84]
[1720646828625,0.06436567,3098.9,3097.9,7.4]
[1720646828790,0.06436567,3098.9,3098.5,0.84]
[1720646834671,0.06436567,3098.9,3097.9,3.0]
[1720646834876,0.06436567,3098.9,3098.4,0.84]
[1720646835578,0.06214555,3098.9,3097.9,2.39]
[1720646835874,0.06214555,3098.9,3098.4,0.84]
[1720646838275,0.06214555,3098.9,3097.8,2.3686]
[1720646838576,0.06214555,3098.9,3098.3,0.84]
[1720646840163,2.2789,3098.8,3098.3,0.84]
[1720646840361,0.05992543,3098.7,3098.3,0.84]
[1720646842979,0.05992543,3098.7,3097.9,0.23686]
[1720646843169,0.05992543,3098.7,3098.3,0.84]
[1720646846200,2.33882543,3098.8,3098.3,0.84]
[1720646851927,0.33809276,3098.7,3098.3,0.84]
[1720646861326,0.33809276,3098.7,3097.9,0.23686]
[1720646861522,0.33809276,3098.7,3098.3,0.84]
[1720646869948,0.33809276,3098.7,3098.3,0.84]
[1720646872739,0.33809276,3098.7,3098.0,0.260546]
[1720646873071,0.33809276,3098.7,3098.2,0.84]
[1720646873427,0.33809276,3098.7,3098.4,0.84]
[1720646878895,2.36569024,3098.7,3098.4,0.84]
[1720646879300,0.33809276,3098.7,3098.4,0.84]
[1720646879800,0.05992543,3098.6,3098.4,0.84]
[1720646880100,0.33809276,3098.7,3098.4,0.84]
[1720646880257,0.39801819,3098.7,3098.4,0.84]
[1720646880890,0.33809276,3098.7,3098.4,0.84]
[1720646885180,2.45832543,3098.6,3098.2,0.84]
[1720646887405,2.3984,3098.6,3098.2,0.84]
[1720646892173,2.3984,3098.6,3097.7,0.67944143]
[1720646892513,2.3984,3098.6,3098.3,0.84]
[1720646897605,0.05992543,3098.5,3098.3,0.84]
[1720646897803,0.50850333,3098.5,3098.3,0.84]
[1720646899493,2.02735426,3098.4,3098.3,0.84]
[1720646900325,2.53585759,3098.5,3098.3,0.84]
[1720646901227,2.53373318,3098.5,3098.3,0.84]
[1720646901589,2.3928,3098.4,3098.3,0.84]
[1720646901937,4.41802985,3098.4,3098.1,0.84]
[1720646902134,2.3928,3098.4,3098.1,0.84]
[1720646902313,4.41802985,3098.4,3098.1,0.84]
[1720646903130,2.3928,3098.3,3098.1,0.84]
[1720646903295,2.3928,3098.3,3097.3,2.26]
[1720646903296,0.05992543,3098.2,3097.9,0.84]
[1720646905134,0.05992543,3098.2,3097.4,3.0]
[1720646905340,2.3928,3098.1,3097.9,0.84]
[1720646905647,2.84050816,3098.1,3097.9,0.84]
[1720646906849,2.3928,3098.0,3096.8,0.67944143]
[1720646906999,2.3928,3097.7,3096.8,0.67944143]
[1720646907193,2.3928,3097.5,3096.8,0.67944143]
[1720646907412,2.3928,3097.3,3096.8,0.67944143]
[1720646907740,0.06214555,3097.2,3096.8,0.67944143]
[1720646909592,2.3928,3097.1,3096.8,0.67944143]
[1720646909842,0.06214555,3097.0,3096.8,0.67944143]
[1720646910702,0.01624365,3096.9,3096.8,0.67944143]
[1720646912327,0.26336257,3096.9,3096.8,0.67944143]
[1720646917155,2.53246257,3096.9,3096.8,0.67944143]
[1720646922082,2.53246257,3096.9,3096.3,0.84]
[1720646922286,0.06214555,3096.8,3096.3,0.84]
[1720646923884,0.01624365,3096.4,3096.3,0.84]
[1720646927099,0.01624365,3096.4,3095.5,2.4184]
[1720646927296,0.01624365,3096.4,3096.2,0.84]
[1720646927666,0.06214555,3096.8,3096.2,0.84]
[1720646928154,0.01624365,3096.3,3096.2,0.84]
[1720646933100,1.13546418,3096.3,3096.2,0.84]
[1720646935797,0.01624365,3096.3,3096.2,3.257]
[1720646936102,0.01624365,3096.3,3096.2,10.36246]
[1720646936283,1e-08,3096.3,3096.2,10.36246]
[1720646936480,1e-08,3096.3,3096.2,13.59222]
[1720646938100,9.7732,3098.2,3096.7,3.22922]
[1720646938286,1.18101636,3098.1,3097.5,0.84]
[1720646938486,1.11887081,3098.0,3097.5,0.84]
[1720646938686,1.11887081,3097.9,3097.5,0.84]
[1720646938869,1.11887081,3097.8,3097.5,0.84]
[1720646939074,1.11887081,3097.7,3097.5,0.84]
[1720646939274,1.11887081,3097.6,3097.5,0.84]
[1720646939474,3.06214555,3098.1,3097.5,0.84]
[1720646939708,1.11882782,3098.0,3097.5,0.84]
[1720646939894,1.11882782,3097.9,3097.5,0.84]
[1720646940193,1.11882782,3097.8,3097.5,0.84]
[1720646940519,1.11882782,3097.7,3097.5,0.84]
[1720646940707,1.11882782,3097.6,3097.5,0.84]
[1720646941920,1.45675169,3097.6,3097.5,0.84]
[1720646942122,0.33792387,3097.6,3097.5,0.84]
[1720646942482,1.45670015,3097.6,3097.5,0.84]
[1720646943119,0.33792387,3097.6,3097.5,1.1657]
[1720646943295,0.33792387,3097.6,3097.5,4.7157]
[1720646943732,0.33792387,3097.6,3097.5,7.94411]
[1720646943885,0.33792387,3097.6,3097.5,13.58952]
[1720646944085,2.3332,3099.1,3097.9,2.417]
[1720646944284,1.11839992,3099.0,3098.9,0.84]
[1720646944502,1.45637489,3099.0,3098.9,0.84]
[1720646945141,0.33797497,3099.0,3098.9,0.84]
[1720646950527,0.33797497,3099.0,3098.9,1.39]
[1720646955108,2.3382,3100.3,3098.9,3.6907]
[1720646955425,2.3382,3100.3,3099.9,0.84]
[1720646955710,0.33796038,3100.2,3099.9,0.84]
[1720646960244,0.33796038,3100.2,3100.1,0.84]
[1720646961089,2.38604555,3100.7,3100.1,0.84]
[1720646961290,2.38604555,3100.7,3100.5,0.84]
[1720646961537,2.3239,3100.7,3100.5,0.84]
[1720646971045,2.4674,3101.1,3100.5,0.84]
[1720646971245,0.06214555,3101.0,3100.7,0.84]
[1720646971677,3.06214555,3101.0,3100.7,0.84]
[1720646971878,0.3379385,3100.9,3100.7,0.84]
[1720646972076,0.06214555,3100.8,3100.7,0.84]
[1720646973385,1.1799091,3100.8,3100.7,0.84]
[1720646973568,1.17990914,3100.8,3100.7,0.84]
[1720646973899,1.17991531,3100.8,3100.7,0.84]
[1720646975178,1.11776976,3100.8,3100.7,0.84]
[1720646975689,1.11776012,3100.8,3100.7,0.84]
[1720646977065,1.11776563,3100.8,3100.7,0.84]
[1720646980564,0.40008405,3100.9,3100.7,0.84]
[1720646980769,1.117748,3100.8,3100.7,0.84]
[1720646984194,1.11773543,3100.8,3100.7,0.84]
[1720646987608,1.11772063,3100.8,3100.7,0.84]
[1720646991211,1.11771267,3100.8,3100.7,0.84]
[1720646994601,1.11769653,3100.8,3100.7,0.84]
[1720646994820,1.11769636,3100.8,3100.7,0.84]
[1720646995824,1.11769636,3100.8,3100.7,1.15336]
[1720646998094,0.40002895,3101.3,3100.7,1.15336]
[1720646998312,0.40002895,3101.3,3101.1,0.84]
[1720646998313,1.11759637,3101.2,3101.1,0.84]
[1720647000578,1.11759637,3101.2,3100.3,2.3637]
[1720647000579,1.17974192,3101.2,3100.3,2.3637]
[1720647000783,3.40849637,3101.1,3101.0,0.84]
[1720647000978,2.2909,3101.1,3101.0,0.84]
[1720647001218,4.43621794,3101.1,3101.0,0.84]
[1720647002923,2.4718,3101.0,3099.9,9.7736]
[1720647003130,4.23034603,3100.9,3100.7,0.84]
[1720647003300,4.61711794,3100.8,3100.7,0.84]
[1720647003506,6.70214603,3100.8,3100.7,0.84]
[1720647003922,4.67926349,3100.8,3100.7,0.84]
[1720647004260,4.67926349,3100.8,3100.5,0.84]
[1720647004261,5.34967036,3100.8,3100.5,0.84]
[1720647004546,2.3925,3100.5,3099.1,7.4]
[1720647004692,4.41565721,3099.9,3098.5,2.2909]
[1720647004893,4.41565721,3099.9,3099.4,0.84]
[1720647004894,2.02315721,3099.7,3099.4,0.84]
[1720647005128,2.02315721,3099.5,3099.4,0.84]
[1720647005297,2.14551021,3099.5,3099.4,0.84]
[1720647005910,2.3925,3099.4,3098.0,2.2909]
[1720647006105,1.17997847,3099.3,3099.0,0.84]
[1720647006309,2.3925,3099.4,3099.0,0.84]
[1720647006310,1.17997847,3099.2,3099.0,0.84]
[1720647006491,1.11783292,3099.1,3098.8,0.84]
[1720647006700,0.06214555,3099.0,3098.6,0.84]
[1720647006933,0.06214555,3099.0,3097.5,2.2909]
[1720647006934,2.3925,3098.8,3098.4,0.84]
[1720647007235,1.17997847,3098.7,3098.4,0.84]
[1720647007400,0.06214555,3098.7,3097.4,7.4]
[1720647007596,1.1185926,3098.6,3098.1,0.84]
[1720647007907,2.20802406,3098.5,3097.9,0.84]
[1720647008108,1.1185926,3098.4,3097.9,0.84]
[1720647008309,0.06214555,3098.3,3097.9,0.84]
[1720647008510,1.1185926,3098.2,3097.9,0.84]
[1720647008836,0.06214555,3098.1,3097.2,1.896]
[1720647009023,0.06214555,3098.1,3097.3,0.41869]
[1720647009222,0.06214555,3098.6,3097.3,0.41869]
[1720647009534,1.11877144,3098.5,3097.3,0.41869]
[1720647009730,1.18091699,3098.4,3097.3,0.41869]
[1720647009969,0.06214555,3098.4,3097.3,0.41869]
[1720647010120,0.06214555,3098.4,3097.4,0.231469]
[1720647010710,0.06214555,3098.6,3097.4,0.231469]
[1720647011225,1.1187604,3098.5,3097.4,0.231469]
[1720647011400,0.06214555,3098.4,3097.4,0.231469]
[1720647011593,2.3925,3098.3,3097.2,1.896]
[1720647011808,0.06214555,3098.2,3097.2,1.896]
[1720647012336,3.06214555,3098.2,3097.2,1.896]
[1720647012635,3.06214555,3098.2,3096.8,4.896]
[1720647012810,0.06214555,3098.2,3096.8,4.896]
[1720647012996,3.06214555,3098.2,3096.9,1.45869]
[1720647014012,3.06214555,3098.2,3097.1,1.896]
[1720647015946,0.06214555,3098.2,3097.5,1.896]
[1720647016146,2.73069641,3098.3,3097.5,1.896]
[1720647016346,2.73069641,3098.3,3097.6,0.1896]
[1720647024863,0.06214555,3098.2,3097.6,0.1896]
[1720647029748,0.06214555,3098.2,3097.3,1.896]
[1720647030675,0.06214555,3098.2,3097.9,0.79]
[1720647033257,1.11874778,3098.1,3097.9,0.79]
[1720647033578,0.06214555,3098.2,3097.9,0.79]
[1720647033781,1.1187479,3098.1,3097.9,0.79]
[1720647034080,0.06214555,3098.2,3097.9,0.79]
[1720647034276,1.1187479,3098.1,3097.9,0.79]
[1720647034463,1.1187479,3098.0,3097.9,0.79]
[1720647035584,0.06214555,3098.2,3097.9,0.79]
[1720647035885,1.11874668,3098.1,3097.9,0.79]
[1720647036042,1.11874668,3098.0,3097.9,0.79]
[1720647038278,1.11874668,3098.0,3096.9,1.45869]
[1720647038588,3.0,3098.8,3097.8,0.79]
[1720647038589,3.50109223,3097.9,3097.8,0.79]
[1720647038879,3.43894668,3097.9,3097.8,0.79]
[1720647039084,2.3202,3097.9,3097.8,0.79]
[1720647039384,3.43896669,3097.9,3097.8,0.79]
[1720647039950,3.43896669,3097.9,3096.8,3.0]
[1720647040252,1.18091224,3097.8,3097.7,0.79]
[1720647041892,1.51904764,3097.8,3097.7,0.79]
[1720647042492,0.40028095,3097.8,3097.7,0.79]
[1720647042801,1.51906096,3097.8,3097.7,0.79]
[1720647043460,1.51906096,3097.8,3096.9,0.52909]
[1720647043652,1.18092556,3097.7,3097.6,0.79]
[1720647045902,0.06214555,3097.7,3097.6,0.79]
[1720647046080,1.18102581,3097.7,3097.6,0.79]
[1720647048696,1.18102581,3097.7,3097.0,0.352909]
[1720647048900,1.11888026,3097.6,3097.5,0.79]
[1720647049596,1.11888033,3097.6,3097.5,0.79]
[1720647052208,1.11888033,3097.6,3097.0,0.352909]
[1720647052411,1.11888033,3097.5,3097.0,0.352909]
[1720647052613,1.11888033,3097.6,3097.4,0.79]
[1720647052991,1.11889701,3097.5,3097.4,0.79]
[1720647054393,2.3209,3097.4,3096.7,2.2909]
[1720647054722,1.18104256,3097.3,3096.7,2.51999]
[1720647054920,1.11889701,3097.2,3096.7,2.51999]
[1720647055097,1.11889701,3097.2,3097.1,0.79]
[1720647055619,1.18104256,3097.3,3097.1,0.79]
[1720647055922,1.11889701,3097.2,3097.1,0.79]
[1720647056421,1.1190384,3097.2,3097.1,0.79]
[1720647059800,0.06214555,3097.3,3097.1,0.79]
[1720647060141,1.11903596,3097.2,3097.1,0.79]
[1720647061125,1.11903596,3097.2,3096.4,2.4676]
[1720647061435,1.11903596,3097.1,3097.0,0.79]
[1720647062120,1.11903596,3097.2,3096.6,0.79]
[1720647065038,1.11903596,3097.2,3096.5,1.03676]
[1720647066085,0.06214555,3097.3,3096.5,1.03676]
[1720647066086,1.11907726,3097.1,3096.5,1.03676]
[1720647066314,1.11907726,3097.0,3096.5,1.03676]
[1720647066520,1.11907726,3096.9,3096.5,1.03676]
[1720647066715,1.11907726,3096.8,3096.5,1.03676]
[1720647067027,0.06214555,3097.3,3096.5,1.03676]
[1720647067221,1.11907793,3097.2,3096.6,0.350436]
[1720647067423,1.11907793,3097.1,3096.5,0.79]
[1720647067613,1.11907793,3097.0,3096.5,0.79]
[1720647067937,1.11907793,3096.9,3096.5,0.79]
[1720647068256,1.11907793,3096.8,3096.5,0.79]
[1720647068438,1.11907793,3096.7,3096.5,0.79]
[1720647068741,0.06214555,3097.3,3096.5,0.79]
[1720647069051,1.11910834,3097.2,3096.5,1.11576]
[1720647069343,1.18125389,3097.1,3096.4,3.2576]
[1720647069541,0.06214555,3097.1,3096.4,3.2576]
[1720647069729,1.1191769,3097.0,3096.4,3.2576]
[1720647069932,1.1191769,3096.9,3096.4,3.2576]
[1720647070133,1.1191769,3097.0,3096.4,3.2576]
[1720647070355,1.18132245,3096.9,3096.4,0.79]
[1720647070645,1.1191769,3096.8,3096.4,0.79]
[1720647070854,1.1191769,3097.2,3096.4,0.79]
[1720647071009,1.18132245,3097.1,3096.4,0.79]
[1720647071210,1.1191769,3097.0,3096.4,0.79]
[1720647071411,0.06214555,3096.9,3096.4,0.79]
[1720647071612,1.1191769,3096.8,3096.4,0.79]
[1720647072917,0.06214555,3096.9,3096.4,0.79]
[1720647073350,1.11920587,3096.8,3096.4,0.79]
[1720647073663,1.11920587,3096.7,3096.2,0.79]
[1720647073866,1.18135142,3096.8,3096.2,0.79]
[1720647074069,1.11920587,3096.7,3096.2,0.79]
[1720647074225,1.18135142,3096.7,3096.1,2.3176]
[1720647074430,1.11920587,3096.6,3096.2,0.79]
[1720647075726,1.11920587,3096.6,3096.1,2.3176]
[1720647075928,1.11920587,3096.6,3096.1,3.1076]
[1720647076128,0.06214555,3096.5,3096.1,3.1076]
[1720647076328,1.11920587,3096.4,3096.1,3.1076]
[1720647076631,1.11925534,3096.3,3096.1,3.1076]
[1720647076960,0.06214555,3096.8,3096.1,3.1076]
[1720647077157,1.11928681,3096.7,3096.1,3.1076]
[1720647077327,1.18143236,3096.6,3096.1,3.1076]
[1720647077529,1.11928681,3096.5,3096.1,3.1076]
[1720647077758,1.11928681,3096.4,3096.1,0.79]
[1720647077964,1.11928681,3096.3,3096.1,0.79]
[1720647078133,1.11928681,3096.7,3096.1,0.79]
[1720647078343,1.11927943,3096.6,3096.1,0.79]
[1720647078523,3.60672498,3096.5,3095.8,2.3042]
[1720647078725,1.11927943,3096.4,3095.5,2.3814]
[1720647078930,0.06214555,3096.3,3095.8,0.79]
[1720647079232,1.11927943,3096.2,3095.8,0.79]
[1720647079644,0.06214555,3096.1,3095.5,2.3814]
[1720647079845,1.11927943,3096.0,3095.5,3.1714]
[1720647080044,1.119484,3095.9,3095.5,0.79]
[1720647080260,1.119484,3095.8,3095.5,0.79]
[1720647080465,3.499484,3096.0,3095.5,0.79]
[1720647080640,1.119484,3095.9,3095.5,0.79]
[1720647080839,1.119484,3095.9,3095.3,0.79]
[1720647081050,1.18162955,3095.9,3095.3,0.79]
[1720647081250,1.119484,3095.8,3095.3,0.79]
[1720647083532,1.11951654,3095.7,3095.3,0.79]
[1720647083732,0.06214555,3095.9,3095.3,0.79]
[1720647083927,1.1195158,3095.8,3095.3,0.79]
[1720647084133,1.1195158,3095.7,3095.3,0.79]
[1720647084333,1.1195158,3095.8,3095.3,0.79]
[1720647084534,1.11952231,3095.7,3095.3,0.79]
[1720647084787,0.06214555,3095.9,3095.3,0.79]
[1720647084986,1.11952203,3095.8,3095.3,0.79]
[1720647085267,1.11952203,3095.7,3095.3,0.79]
[1720647085470,1.11952203,3095.8,3095.3,0.79]